Cogmind - Beta 16 @@@ ROGUE MODE // 2026.01.05 @ 04:00:13 Player: LYMPH NODE JONES Result: Destroyed self with Rocket Launcher Performance ------------- Evolutions (1) 500 Regions Visited (3) 600 Robots Destroyed (67) 335 Value Destroyed (1378) 1378 Prototype IDs (0) 0 Alien Tech Used (0) 0 Bonus (30) 30 TOTAL SCORE: 2843 Bonus ------- High Alert Combat Kills 30 Cogmind --------- Core Integrity 0/400 Matter 181/300 Energy 125/125 System Corruption 0% Temperature Cool (0) Movement Rolling (80) Location -9/Storage Parts ------- > --- POWER (1) -------- Light Ion Engine > --- PROPULSION (2) --- Wheel Wheel > --- UTILITY (4) ------ Small Storage Unit Visual Processing Unit Signal Interpreter Terrain Scan Processor > --- WEAPON (2) ------- Rocket Launcher Mini Grenade Launcher > --- INVENTORY (8) ---- Ion Engine Beam Rifle Light Assault Rifle Light Assault Rifle Mini Grenade Launcher Datajack Peak State ------------ > --- POWER ------------ Light Ion Engine > --- PROPULSION ------- Aluminum Leg Aluminum Leg > --- UTILITY ---------- Small Storage Unit Visual Processing Unit Signal Interpreter Hardened Light Armor Plating > --- WEAPON ----------- Assault Rifle Improved Light Cannon > --- INVENTORY -------- Light Assault Rifle Light Assault Rifle Grenade Launcher Rocket Launcher Rocket Launcher Rocket Launcher Datajack [Rating: 13] Favorites ----------- Power Light Ion Engine Engine Light Ion Engine Propulsion Aluminum Leg Leg Aluminum Leg Wheel Wheel Utility Small Storage Unit Device Field Recycling Unit Storage Small Storage Unit Processor Signal Interpreter Protection Light Armor Plating Weapon Assault Rifle Energy Gun Beam Rifle Ballistic Gun Assault Rifle Ballistic Cannon Improved Light Cannon Launcher Grenade Launcher Build | -11 -10 -9 -9 ------- Run | Yrd Mat Mat Sto Slots Evolved 2 | . . 2 . Power . | . . . . Propulsion . | . . . . Utility 2 | . . 2 . Weapon . | . . . . Parts Attached 41 | 6 7 20 8 Power 4 | 1 . 2 1 Engine 4 | 1 . 2 1 Core . | . . . . Reactor . | . . . . Propulsion 9 | 2 . 5 2 Treads . | . . . . Leg 2 | 2 . . . Wheel 7 | . . 5 2 Hover . | . . . . Flight . | . . . . Utility 10 | 1 3 5 1 Device 3 | . 2 1 . Storage 1 | 1 . . . Processor 4 | . 1 2 1 Hackware . | . . . . Protection 2 | . . 2 . Artifact . | . . . . Weapon 18 | 2 4 8 4 Energy Gun 4 | 2 . 2 . Energy Cannon . | . . . . Ballistic Gun 7 | . 3 4 . Ballistic Cannon 1 | . . 1 . Launcher 6 | . 1 1 4 Special Weapon . | . . . . Impact Weapon . | . . . . Slashing Weapon . | . . . . Piercing Weapon . | . . . . Special Melee Weapon . | . . . . Unidentified Prototypes . | . . . . Parts Lost 14 | . . 8 6 Power 3 | . . 2 1 Propulsion 7 | . . 4 3 Utility 1 | . . . 1 Weapon 3 | . . 2 1 Highest Loss Streak 3 | . . 3 3 To Critical Strikes . | . . . . Average Backups 6 | . 6 6 6 Power . | . 1 . . Propulsion . | . . . . Utility . | . . . . Weapon 4 | . 4 5 4 Tool/Special . | . . . . Unused Backups 11 | . 9 . 2 Power 4 | . 3 . 1 Propulsion 3 | . 3 . . Utility . | . . . . Weapon 3 | . 3 . . Tool/Special 1 | . . . 1 Average Slot Usage (%) 96 | . 99 90 94 Engine 11 | . 14 8 10 Leg 17 | . 28 7 . Wheel 5 | . . 9 19 Device 1 | . . 6 . Storage 12 | . 14 11 11 Processor 18 | . 13 24 23 Protection 1 | . . 1 7 Energy Gun 4 | . 3 1 10 Ballistic Gun 15 | . 19 12 5 Ballistic Cannon 1 | . . 6 . Launcher 4 | . 5 1 5 Peak Build Rating 13 | 6 8 13 13 Average Rating 9 | 4 7 11 11 On Entrance 6 | . 6 8 11 Avg Prop Armor Cover (%) . | . . . . Naked Turns . | . . . . Heaviest Build 23 | 10 13 23 18 Greatest Support 20 | 20 20 20 20 Greatest Overweight (x) 7 | . . 7 1 Average Overweight (x) . | . . . . Largest Inventory Capacity 8 | 8 8 8 8 Average Capacity 7 | 6 8 8 8 Most Carried 8 | 2 8 8 8 Average Carried 6 | 1 6 6 6 Final Capacity 8 | 8 8 8 8 Final Carried 8 | 2 8 6 6 Class Distribution -------------------- 73% | Mutant 26% | Scavenger-Mutant Dominant Class ---------------- Mutant | -10/Materials Mutant | -9/Materials Scavenger-Mutant | -9/Storage Resources | -11 -10 -9 -9 ----------- Run | Yrd Mat Mat Sto Matter Collected 1133 | 230 201 481 221 Remotely . | . . . . Salvage Created 1461 | . 202 800 459 Parts 127 | . 25 67 35 Haulers Intercepted 1 | . . . 1 Recyclers Shooed 2 | . . 2 . Parts Field Recycled 22 | . . 22 . Retrieved Matter 131 | . . 131 . Parts Self-Destructed . | . . . . Prevented . | . . . . Parts Restored . | . . . . Kills | -11 -10 -9 -9 ------- Run | Yrd Mat Mat Sto Combat Hostiles Destroyed 42 | . 10 21 11 Guns 20 | . 10 7 3 Cannons 5 | . . 5 . AOE 17 | . . 9 8 Classes Destroyed 9 | . 4 3 2 Worker 11 | . 1 6 4 Builder 4 | . . 2 2 Hauler 1 | . . . 1 Recycler 1 | . . . 1 Operator 2 | . . 1 1 Watcher 6 | . 2 4 . Swarmer 18 | . 9 6 3 Grunt 15 | . 1 10 4 Sentry 9 | . . 5 4 Best Kill Streak 12 | . 3 12 11 Combat Bots Only 8 | . 3 8 4 Max Kills in Single Turn 4 | . 2 4 4 Gunslinging 1 | . . 1 . Exploded 3 | . . 3 2 Melee . | . . . . Uniques/NPCs Destroyed . | . . . . Combat | -11 -10 -9 -9 -------- Run | Yrd Mat Mat Sto Hostile Shots Fired 202 | . 42 96 64 Missed 54 | . 10 21 23 Hits 148 | . 32 75 41 Projectile 148 | . 32 75 41 Critical Strikes 1 | . . . 1 Damage Taken 1877 | . 285 983 609 Core 458 | . 48 246 164 Absorbed by Shields . | . . . . Regen/Repaired (Parts) 81 | . 17 . 64 Core Remaining (%) 90 | 100 80 . . Volleys Fired 121 | . 24 64 33 Largest 2 | . 2 2 2 Hottest 89 | . 60 76 89 Shots Fired 223 | . 44 118 61 Gun 165 | . 42 84 39 Cannon 24 | . . 24 . Launcher 34 | . 2 10 22 Special . | . . . . Kinetic 140 | . 35 97 8 Thermal 44 | . 7 6 31 Explosive 34 | . 2 10 22 Electromagnetic 5 | . . 5 . Robot Hit Streak 13 | . 5 13 6 Robot Miss Streak 4 | . 4 4 3 Penetration Max . | . . . . Secondary Targets 7 | . 3 3 1 Max Gunslinging Chain 1 | . 1 1 1 Shots Hit Robots 113 | . 18 67 28 Core Hits 102 | . 17 53 32 Critical Kills . | . . . . Critical Parts Destroyed . | . . . . Critical Strikes . | . . . . Melee Attacks . | . . . . Impact . | . . . . Slashing . | . . . . Piercing . | . . . . Sneak Attacks . | . . . . Combat Hostiles . | . . . . Follow-up Attacks . | . . . . Damage Inflicted 3357 | . 316 1729 1312 Guns 1132 | . 216 609 307 Cannons 337 | . . 337 . Explosions 1887 | . 100 783 1004 Melee . | . . . . Ramming 1 | . . . 1 Kinetic 1042 | . 173 821 48 Thermal 396 | . 43 94 259 Explosive 1837 | . 100 733 1004 Electromagnetic 81 | . . 81 . Impact . | . . . . Slashing . | . . . . Piercing . | . . . . Highest Corruption . | . . . . Average Corruption . | . . . . Corruption Purged . | . . . . Corruption Blocked . | . . . . Overload Shots . | . . . . Overflow Damage 15 | . . 15 . Projectiles 13 | . . 13 . Explosions 2 | . . 2 . Melee . | . . . . Knockbacks . | . . . . Impact . | . . . . Kinetic . | . . . . Secondary . | . . . . Self-Inflicted Damage 176 | . 17 23 136 Shots 6 | . 1 1 4 Rammed 1 | . . . 1 Targets Rammed 1 | . . . 1 Kicked . | . . . . Crushed . | . . . . Highest Temperature 325 | . . 68 325 Average Temperature 88 | . . 23 117 Received Heat Transfer 498 | . 12 327 159 Effects 1 | . . . 1 Energy Bleed 1 | . . . 1 Siege Activations . | . . . . Martial Activations . | . . . . Shielding Activations . | . . . . Robots Disrupted . | . . . . Combat Hostiles . | . . . . Robots Corrupted . | . . . . Combat Hostiles . | . . . . Parts Fried . | . . . . Impact Corruptions . | . . . . Robots Melted . | . . . . Combat Hostiles . | . . . . Parts Melted 2 | . . . 2 Heat Transferred 1027 | . 100 261 666 Parts Sabotaged . | . . . . Parts Stolen . | . . . . Parts Stripped . | . . . . Power Chain Reactions 1 | . . 1 . Alert | -11 -10 -9 -9 ------- Run | Yrd Mat Mat Sto Maximum Alert Level 2 | . . 2 2 Low Security (%) 82 | 100 100 61 55 Level 1 13 | . . 34 23 Level 2 4 | . . 3 20 Level 3 . | . . . . Level 4 . | . . . . Level 5 . | . . . . High Security . | . . . . Max Security . | . . . . Peak Influence 473 | . 121 404 473 Initial 163 | . . . 163 Average 95 | . 24 162 228 Influence Increases 1538 | . 284 678 576 Destroy 0b10 Robot/C 840 | . 200 420 220 Destroy 0b10 Robot/NC 125 | . 15 65 45 Destroy Leader 224 | . 44 118 62 Successful Hack 22 | . 5 . 17 Disable Machine 135 | . . 30 105 Destroy Structure 177 | . 5 45 127 Lose Combat Pursuer 15 | . 15 . . Influence Decreases 1065 | . 284 290 491 Entered New Map 225 | . . . 225 Time Decay 700 | . 284 210 206 Lost Part 140 | . . 80 60 Squads Dispatched 4 | . 1 2 1 Investigation . | . . . . Extermination . | . . . . Reinforcement 4 | . 1 2 1 Assault . | . . . . Garrison . | . . . . Intercept . | . . . . Searches Triggered . | . . . . Construction Impeded . | . . . . Haulers Reinforced . | . . . . Active Scanning Responses . | . . . . Cargo Convoy Interrupts . | . . . . Stealth | -11 -10 -9 -9 --------- Run | Yrd Mat Mat Sto Distress Signals 6 | . 2 2 2 Communications Jammed . | . . . . Distress Signals . | . . . . Times Spotted 66 | . 16 33 17 Peak Tracking Total 7 | . 4 7 7 Tactical Retreats 1 | . 1 . . Traps | -11 -10 -9 -9 ------- Run | Yrd Mat Mat Sto Traps Triggered 1 | . . 1 . Indirectly . | . . . . Trap Hack Attempts . | . . . . Triggered . | . . . . Disarmed . | . . . . Reprogrammed . | . . . . Reused . | . . . . Traps Extracted . | . . . . Installed . | . . . . Triggered . | . . . . Machines | -11 -10 -9 -9 ---------- Run | Yrd Mat Mat Sto Machines Disabled 9 | . . 2 7 Max in Single Turn 1 | . . 1 1 Machines Repaired . | . . . . Machines Dismantled . | . . . . Machines Sabotaged . | . . . . Overloaded Fab Kills . | . . . . Hacking | -11 -10 -9 -9 --------- Run | Yrd Mat Mat Sto Machines Accessed 7 | . 3 . 4 Terminals 4 | . 1 . 3 Fabricators . | . . . . Repair Stations 2 | . 1 . 1 Recycling Units 1 | . 1 . . Scanalyzers . | . . . . Garrison Access . | . . . . Total Hacks 22 | . 11 . 11 Successful 15 | . 9 . 6 Failed 7 | . 2 . 5 Catastrophic 1 | . . . 1 Database Lockouts . | . . . . Manual . | . . . . Terminals 7 | . 1 . 6 Fabricators . | . . . . Repair Stations 10 | . 5 . 5 Recycling Units 5 | . 5 . . Scanalyzers . | . . . . Garrison Access . | . . . . Terminal Hacks 3 | . 1 . 2 Record 1 | . 1 . . Open Door 1 | . . . 1 Alert Level 1 | . . . 1 Fabricator Hacks . | . . . . Repair Station Hacks 8 | . 4 . 4 Scan Component 5 | . 3 . 2 Repair 3 | . 1 . 2 Recycling Unit Hacks 4 | . 4 . . Recycle Component 4 | . 4 . . Scanalyzer . | . . . . Garrison Access Hacks . | . . . . Unauthorized Hacks . | . . . . Terminals . | . . . . Fabricators . | . . . . Repair Stations . | . . . . Recycling Units . | . . . . Scanalyzers . | . . . . Garrison Access . | . . . . Data Cores Recovered . | . . . . Used . | . . . . Hacking Detections 5 | . 3 . 2 Full Trace Events 3 | . 2 . 1 Feedback Events . | . . . . Feedback Blocked . | . . . . Robot Schematics Acquired . | . . . . Robots Built . | . . . . Authchips . | . . . . Time . | . . . . Total Robot Build Rating . | . . . . Part Schematics Acquired . | . . . . Parts Built . | . . . . Authchips . | . . . . Time . | . . . . Total Part Build Rating . | . . . . Part Studies Acquired . | . . . . Parts Repaired 3 | . 1 . 2 Time 78 | . 26 . 52 Parts Recycled 4 | . 4 . . Recycled Matter . | . . . . Retrieved Matter . | . . . . Retrieved Components . | . . . . Parts Scanalyzed . | . . . . Part Schematics Acquired . | . . . . Parts Damaged . | . . . . Bothacking | -11 -10 -9 -9 ------------ Run | Yrd Mat Mat Sto Used RIF Installer . | . . . . Robots Hacked . | . . . . Non-combat . | . . . . Combat . | . . . . Robot Hacks Applied . | . . . . Relay Couplers Released . | . . . . Fabnet Peak Effective % . | . . . . Robots Rewired . | . . . . Allies Hacked . | . . . . Hacks Repelled . | . . . . Allies | -11 -10 -9 -9 -------- Run | Yrd Mat Mat Sto Total Allies . | . . . . Largest Group . | . . . . Highest-Rated Group . | . . . . Highest-Rated Ally . | . . . . Total Orders . | . . . . Ally Attacks . | . . . . Total Damage . | . . . . Kills . | . . . . Allies Corrupted . | . . . . Allies Melted . | . . . . Intel | -11 -10 -9 -9 ------- Run | Yrd Mat Mat Sto Active Infowar (turns) 1126 | . 5 686 435 Optics 1121 | . . 686 435 Seismic 5 | . 5 . . Robot Analysis Total . | . . . . Derelict Logs Recovered . | . . . . Drone Launches . | . . . . Drone Recoveries . | . . . . Exploration | -11 -10 -9 -9 ------------- Run | Yrd Mat Mat Sto Turns Passed 2570 | 60 1389 686 435 Spaces Moved 1767 | 43 1024 364 336 Core 11 | 3 . 8 . Treads . | . . . . Legs 1193 | 40 1024 129 . Wheels 563 | . . 227 336 Hover . | . . . . Flight . | . . . . Fastest Speed 50 | 50 120 80 80 Average Speed 113 | 115 120 125 81 Slowest Speed 400 | 120 120 400 95 Overloaded Moves . | . . . . Propulsion Burnouts . | . . . . Robots Hopped . | . . . . Potential Cave-ins . | . . . . Cave-ins Triggered . | . . . . Exploration Rate (%) 45 | 5 85 38 55 Regions Visited 3 Branch Regions 1 Pre-discovered Areas . | . . . . Known Exits Taken 2 | . 1 1 . Unknown Exits Taken 1 | 1 . . . Scrap Searched . | . . . . Spaces Dug . | . . . . Terrain Destroyed 203 | . 3 42 158 Melee . | . . . . Projectile 1 | . . 1 . AOE 202 | . 3 41 158 Terrain Rammed . | . . . . Walls Destroyed . | . . . . Machines Disabled . | . . . . Actions | -11 -10 -9 -9 --------- Run | Yrd Mat Mat Sto Total 2111 | 51 1144 481 435 Wait 128 | . 62 19 47 Move 1764 | 42 1023 363 336 Hop . | . . . . Pick Up 24 | 3 16 2 3 Fast Attach 33 | 5 7 15 6 Attach 10 | 1 . 6 3 Detach 3 | . . 2 1 Swap 6 | . 1 1 4 Drop 21 | . 11 9 1 Fire 121 | . 24 64 33 Melee . | . . . . Ram 1 | . . . 1 Kick . | . . . . Crush . | . . . . Escape Stasis . | . . . . Rewire . | . . . . Trap . | . . . . Miscellaneous . | . . . . Route ------- -11/Scrapyard -10/Materials (discovered 3 exits: *Mat x2 / *Min) -9/Materials (discovered 2 exits: *Min / *Sto) -9/Storage History --------- Turn | Location | Event 15 | -11/Scrapyard | Discovered new exit (range 16) 61 | -11/Scrapyard | Entered Materials 323 | -10/Materials | Build established: Mutant 352 | -10/Materials | Repaired Assault Rifle 426 | -10/Materials | Discovered new exit (range 15) 468 | -10/Materials | Identified exit to Mines 566 | -10/Materials | Discovered new exit (range 5) 574 | -10/Materials | Identified exit to Materials 770 | -10/Materials | Discovered exit to Materials (range 16) 1450 | -10/Materials | Entered another Materials area 1450 | -9/Materials | Evolved 2 slots: Utility x2 1862 | -9/Materials | Discovered new exit (range 8) 1898 | -9/Materials | Identified exit to Mines 1899 | -9/Materials | Destroyed 8 combat bots 1923 | -9/Materials | Lost 3 parts (1p1n1w) 2030 | -9/Materials | Discovered new exit (range 6) 2048 | -9/Materials | Core integrity fell below 50% 2124 | -9/Materials | Identified exit to Storage 2136 | -9/Materials | Entered Storage 2173 | -9/Storage | Repaired Lgt. Ion Engine 2197 | -9/Storage | Build established: Scavenger-Mutant 2204 | -9/Storage | Repaired Wheel 2448 | -9/Storage | Lost 3 parts (2n1u) 2471 | -9/Storage | Core integrity fell below 20% 2502 | -9/Storage | Lost 3 parts (1p1n1w) 2571 | -9/Storage | Destroyed self with Rocket Launcher Last Messages --------------- 02486_ Acquired 12 matter. 02486_ U-05 Engineer lays Concrete. 02488_ Acquired Wheel. 02488_ U-05 Engineer lays Concrete. 02489_ The unstable cave ceiling collapses. 02489_ U-05 Engineer lays Concrete. 02490_ Acquired Terrain Scan Processor. 02492_ U-05 Engineer lays Concrete. 02497_ Acquired 24 matter. 02497_ U-05 Engineer lays Concrete. 02498_ The unstable cave ceiling collapses. 02499_ U-05 Engineer lays Concrete. 02507_ U-05 Engineer builds a Wall. 02520_ Slammed into W-16 Scout. 02544_ K-01 Serf collects debris. 02555_ Connecting with Door Terminal... 02559_ W-16 Scout sends out distress signal. 02568_ Y-45 Defender destroyed. 02568_ Storage Shell breached. 02570_ The unstable cave ceiling collapses. Map ----- +----------------------------------------------------+ | #?????????????????????????????????????????????? | | #?????????????????????????????????????????????? | | #?????????????????????????????????????????????? | | #?????????????????????????????????????????????? | | #?????????????????????????????????????????????? | | #?????????????????????????????????????????????? | | +?????????????????????????????????????????????? | | #?????????????????????????????????????????????? | | ## #?????????????????????????????????????????????? | | ?# #?????????????????????????????????????????????? | | ?# #??????????????????###????????????????????????? | | ?# #??????????????????# ????????????????????????? | | ?# #???????????# ?????# ??""????????????????????? | | ?# ##??????????# ?????# ??*"????????????????????? | | ##/ ##?????????# ####?# ??["????????????????????? | | ##????????# ## ??["????????????????????? | | #????????# l ## ??*"????????????????????? | | ##????????# # "" "????????????????????? | | ##????????# ## ????????????????????? | | #????????# ## #????????????????????? | | ##????????# #%[ ##???????????????????? | | #?####????# !!#???????????????????? | | #?# ?????? k ! #???????????????????? | | #?# #???????# #???????????????????? | | #+###### #???????# #? ???????????##????????? | | +???????# ####@#?????????? #????????? | | #???????# #???????? #????????? | | #???????# #?????? # #???? | | ##### #??????## ##### / ??? | | ????# # /a + #????????? | | ????# ##########+#####+##### """ """ #????????? | | ????# + ##T #??????"" ""???????????? | | ????#+########## ! ###"#???????? ""???????????? | | ??? ????????#] #??????????????#???????????? | | ?# ""????????# #??????????????????????????? | | ?# ""????????# #??????????????????????????? | | ?# ""????????# | #??????????????????????????? | | ?# ????????########??????????????????????????? | | ?# ??????????????????????????????????????????? | | ?####????????????????????????????????????????????? | | ?????????????????????????????????????????????????? | | ?????????????????????????????????????????????????? | | ?????????????????????????????????????????????????? | | ?????????????????????????????????????????????????? | | ?????????????????????????????????????????????????? | | | | | | | | | | | +----------------------------------------------------+ Best States ------------- Heat Dissipation 28 Energy Generation 10 Energy Capacity 250 Matter Stores 300 Matter Capacity 300 Sight Range 18 Terrain Scan Density 85 Armor Coverage 150 Evasion (%) 55 Item Schematics ----------------- None Robot Schematics ------------------ None Fabricated ------------ Nothing Repaired ---------- Assault Rifle | 83% | -10/Materials Lgt. Ion Engine | 12% | -9/Storage Wheel | 27% | -9/Storage Studied --------- None Alien Tech Used ----------------- None Achievements -------------- None Challenges ------------ None Game ------ Seed TachyonGrenadeSlayer Manual? 0 Play Time 00:40:23 Cumulative 15.3 hours Start 2026.01.04 @ 23:34:51 End 2026.01.05 @ 04:00:13 Sessions 3 Manual Loads 0 Difficulty Rogue Special Mode None Game No. 36 Rogue 36 Adventurer 0 Explorer 0 Win Type - Total 0 Types 0/0/0/0/0/0/0/0/0/0 Lore% 15 Gallery% 15 Achievement% 15 Wizard Run 0 Options --------- Layout 2 ASCII 0 Keyboard 0 Movement Arrows Keybinds 0 Fullscreen 1 Font 16/SmallcapsGlow Map View 50x49 Zoom Use 0% Tactical HUD 1 Map Filters NONE Filters NONE Steam SD RUN: 96d8da6a-db10-4adc-a2e9-5f9011c2b25f